bitfinex-derivatives/quotes_SOLF0:USTF0_20250709
["timestamp","ask_amount","ask_price","bid_price","bid_amount"]
[1752070467834,6.4982,153.87,153.83,6.4997]
[1752070468836,6.4982,153.87,153.84,6.4992]
[1752070469031,6.4982,153.87,153.84,11.22792902]
[1752070469232,9.16852902,153.91,153.84,4.72872902]
[1752070469233,6.4974,153.89,153.84,4.72872902]
[1752070469432,6.4974,153.89,153.85,6.4988]
[1752070470431,6.4976,153.88,153.85,6.4988]
[1752070473442,6.4976,153.88,153.84,11.22782902]
[1752070473637,4.72872902,153.9,153.83,4.72872902]
[1752070473846,4.72872902,153.88,153.8,4.72872902]
[1752070474036,4.4398,153.91,153.77,5.6874]
[1752070474037,4.72872902,153.86,153.79,6.5013]
[1752070474343,6.5001,153.83,153.79,6.5013]
[1752070474539,4.72872902,153.86,153.79,6.5013]
[1752070474737,6.5,153.83,153.79,6.5013]
[1752070474938,6.5,153.83,153.8,6.5009]
[1752070475134,4.72872902,153.87,153.8,4.72872902]
[1752070475340,6.4993,153.85,153.8,4.72872902]
[1752070476144,6.4993,153.84,153.81,6.5003]
[1752070477040,6.4991,153.85,153.82,6.5001]
[1752070477544,6.4985,153.87,153.83,6.4994]
[1752070477744,4.72872902,153.89,153.83,6.4994]
[1752070478144,4.72872902,153.89,153.82,11.22872902]
[1752070478447,4.72872902,153.89,153.82,4.72872902]
[1752070478842,6.4985,153.86,153.83,6.4996]
[1752070481146,6.4982,153.87,153.84,6.4993]
[1752070481446,4.4398,153.91,153.84,4.72872902]
[1752070481947,6.4972,153.89,153.85,6.4986]
[1752070482148,4.4398,153.91,153.85,6.4986]
[1752070482547,6.4978,153.88,153.85,6.4986]
[1752070485353,6.4973,153.89,153.86,6.4984]
[1752070485651,4.72872902,153.9,153.83,4.72872902]
[1752070486248,6.4983,153.87,153.84,6.4991]
[1752070486450,4.72872902,153.9,153.83,4.72872902]
[1752070486747,6.4988,153.86,153.83,11.22842902]
[1752070487155,6.4988,153.86,153.83,4.72872902]
[1752070487452,6.4982,153.87,153.84,6.4991]
[1752070490257,6.4977,153.88,153.84,6.4991]
[1752070490959,11.22612902,153.89,153.85,6.4988]
[1752070491859,6.497,153.9,153.83,4.72872902]
[1752070492360,6.497,153.9,153.86,6.498]
[1752070492658,15.66512902,153.91,153.85,4.72872902]
[1752070493158,10.9364,153.91,153.85,4.72872902]
[1752070493957,10.9364,153.91,153.87,6.4977]
[1752070494553,11.22472902,153.92,153.85,4.72872902]
[1752070494756,6.496,153.92,153.87,4.72872902]
[1752070494957,4.6456,153.95,153.87,4.72872902]
[1752070495157,6.4949,153.95,153.9,4.72872902]
[1752070495657,2.3546,153.99,153.9,4.72872902]
[1752070495658,4.72872902,153.96,153.9,4.72872902]
[1752070496052,4.72872902,153.96,153.88,11.22602902]
[1752070496256,193.5546,153.99,153.85,4.3671]
[1752070496257,4.72872902,153.94,153.85,4.3671]
[1752070496457,4.72872902,153.94,153.86,4.72872902]
[1752070496761,4.72872902,153.94,153.87,6.4978]
[1752070496960,4.72872902,153.94,153.86,4.72872902]
[1752070497263,4.72872902,153.97,153.9,11.22532902]
[1752070497462,4.72848185,153.96,153.9,11.22532902]
[1752070497765,11.22338185,153.95,153.9,11.22532902]
[1752070497958,6.4949,153.95,153.9,11.22532902]
[1752070498162,4.73014826,153.94,153.9,11.22532902]
[1752070498364,6.4949,153.95,153.9,11.22532902]
[1752070498560,4.73014825,153.94,153.9,11.22532902]
[1752070498765,6.4951,153.94,153.9,11.22532902]
[1752070500467,4.72872902,153.93,153.86,4.72872902]
[1752070501078,4.72872902,153.94,153.87,6.498]
[1752070501372,4.72872902,153.94,153.86,4.72872902]
[1752070501974,4.72872902,153.94,153.87,6.4979]
[1752070502274,12.86319633,153.93,153.86,4.72872902]
[1752070502477,6.4968,153.9,153.87,6.498]
[1752070503479,6.4974,153.89,153.86,4.72872902]
[1752070503767,4.72872902,153.92,153.85,1.0]
[1752070503966,6.4975,153.89,153.85,6.4986]
[1752070504164,6.4975,153.89,153.84,5.72872902]
[1752070504363,4.72872902,153.92,153.84,5.72872902]
[1752070504575,6.4971,153.9,153.86,6.4982]
[1752070504971,4.72872902,153.92,153.86,6.4982]
[1752070505272,6.4972,153.89,153.86,6.4982]
[1752070505475,4.72872902,153.92,153.85,6.4988]
[1752070505672,4.72872902,153.9,153.82,4.72872902]
[1752070505871,6.4987,153.86,153.82,4.72872902]
[1752070506074,4.72872902,153.88,153.82,11.22862902]
[1752070506270,4.77211698,153.87,153.82,11.22862902]
[1752070506573,6.4988,153.86,153.82,11.22862902]
[1752070506770,6.4988,153.86,153.83,6.4997]
[1752070507774,6.499,153.85,153.82,6.4999]
[1752070508573,6.4987,153.86,153.83,6.4997]
[1752070508977,4.72872902,153.89,153.8,4.72872902]
[1752070509169,12.89201959,153.88,153.8,4.72872902]
[1752070509365,4.77462155,153.87,153.8,4.72872902]
[1752070509566,6.4989,153.85,153.8,4.72872902]
[1752070509766,4.72872902,153.89,153.8,4.72872902]
[1752070509967,12.89356306,153.88,153.8,4.72872902]
[1752070510171,4.72872902,153.89,153.8,4.72872902]
[1752070510370,4.77511691,153.88,153.79,5.3956]
[1752070510570,4.72872902,153.89,153.82,4.72872902]
[1752070510770,6.4983,153.87,153.84,6.4991]
[1752070511170,6.4983,153.87,153.82,4.72872902]
[1752070511775,4.72872902,153.91,153.82,4.72872902]
[1752070511978,4.72872902,153.91,153.84,4.72872902]
[1752070512172,6.92922902,153.93,153.84,4.72872902]
[1752070512373,16.90446228,153.92,153.86,4.72872902]
[1752070512571,6.92922902,153.93,153.86,4.72872902]
[1752070512771,12.82589838,153.92,153.86,4.72872902]
[1752070512974,6.4966,153.91,153.88,6.4973]
[1752070514776,6.4968,153.9,153.88,6.4973]
[1752070514977,6.4968,153.9,153.87,6.4978]
[1752070515281,4.72872902,153.91,153.84,4.72872902]
[1752070515470,8.09528263,153.9,153.86,6.4984]
[1752070515671,4.72872902,153.91,153.86,6.4984]
[1752070515977,6.4968,153.9,153.87,6.4977]
[1752070516180,6.4968,153.9,153.84,4.72872902]
[1752070516372,6.92922902,153.93,153.86,4.72872902]
[1752070516576,6.4968,153.9,153.86,4.72872902]
[1752070516884,6.92922902,153.93,153.86,4.72872902]
[1752070517275,6.4965,153.91,153.86,4.72872902]
[1752070517872,6.4965,153.91,153.87,6.4976]
[1752070518377,6.4965,153.91,153.86,4.72872902]
[1752070518684,6.4961,153.92,153.86,4.72872902]
[1752070519172,6.4961,153.92,153.89,6.497]
[1752070520283,6.4961,153.92,153.88,6.4974]
[1752070520778,6.4964,153.91,153.88,6.4974]
[1752070521586,6.4968,153.9,153.87,6.4978]
[1752070523286,6.4973,153.89,153.86,11.22702902]
[1752070524283,2.3517,153.94,153.86,5.72872902]
[1752070524487,8.05039217,153.93,153.91,4.72872902]
[1752070524682,8.97748917,153.96,153.89,4.72872902]
[1752070524887,6.4958,153.93,153.9,6.4968]
[1752070525188,6.4958,153.93,153.89,4.72872902]
[1752070525189,4.72872902,153.94,153.87,4.72872902]
[1752070525386,4.72872902,153.92,153.85,7.08082902]
[1752070525576,4.72872902,153.9,153.81,4.72872902]
[1752070525778,4.72872902,153.88,153.81,4.72872902]
[1752070525983,6.4985,153.86,153.81,4.72872902]
[1752070526281,4.72872902,153.86,153.8,2.3377]
[1752070527186,6.499,153.85,153.82,6.4999]
[1752070527586,4.72872902,153.86,153.8,2.3377]
[1752070527787,11.22732902,153.86,153.8,2.3377]
[1752070528590,6.499,153.85,153.82,6.4999]
[1752070529891,11.22742902,153.86,153.83,6.4997]
[1752070530291,6.4987,153.86,153.83,6.4997]
[1752070532088,6.4989,153.85,153.83,6.4997]
[1752070532289,6.4989,153.85,153.8,2.3377]
[1752070532992,6.4989,153.85,153.82,6.4999]
[1752070534192,6.4994,153.84,153.79,3.3521]
[1752070534393,4.72872902,153.86,153.78,4.72872902]
[1752070534896,6.4995,153.84,153.81,6.5005]
[1752070535090,4.72872902,153.86,153.75,3.1307]
[1752070535294,6.4999,153.83,153.8,6.501]
[1752070536496,6.5002,153.82,153.79,6.5012]
[1752070537898,6.5002,153.82,153.79,6.501]
[1752070540493,6.5006,153.81,153.78,6.5016]
[1752070540794,4.72872902,153.84,153.76,4.72872902]
[1752070541298,6.501,153.81,153.77,6.502]
[1752070541497,6.501,153.81,153.76,4.72872902]
[1752070541895,6.501,153.81,153.78,6.5018]
[1752070545002,6.501,153.81,153.76,4.72872902]
[1752070545599,6.501,153.81,153.78,6.5016]
[1752070545900,4.72872902,153.84,153.76,4.72872902]
[1752070546099,4.72872902,153.84,153.78,6.5016]
[1752070546796,6.5006,153.81,153.78,6.5016]
[1752070548599,6.501,153.8,153.78,6.5016]
[1752070548797,6.501,153.8,153.77,6.5021]
[1752070549598,6.5004,153.82,153.77,4.72872902]
[1752070549801,4.72872902,153.84,153.77,4.72872902]
[1752070550100,8.97748917,153.88,153.81,4.72872902]
[1752070550101,6.4988,153.86,153.81,4.72872902]
[1752070550295,4.64784669,153.85,153.81,4.72872902]
[1752070550497,6.4988,153.86,153.81,4.72872902]
[1752070550700,4.64784942,153.85,153.81,11.22912902]
[1752070550999,4.72872902,153.88,153.81,11.22912902]
[1752070551198,6.4992,153.85,153.81,11.22912902]
[1752070551394,4.72872902,153.88,153.81,11.22912902]
[1752070551591,4.72872902,153.86,153.78,191.96]
[1752070551797,6.5004,153.82,153.78,1.0]
[1752070551998,4.72872902,153.84,153.78,6.5016]
[1752070552401,6.5005,153.82,153.78,6.5016]
[1752070553201,6.5005,153.82,153.79,6.5012]
[1752070553497,2.3534,153.85,153.79,4.72872902]
[1752070553897,6.4995,153.84,153.79,4.72872902]
[1752070554300,6.4995,153.84,153.81,6.5005]
[1752070554498,4.72872902,153.88,153.81,4.72872902]
[1752070554802,4.62657304,153.87,153.83,6.4994]
[1752070555102,2.162,153.9,153.83,4.72872902]
[1752070555301,4.62587629,153.89,153.85,6.4985]
[1752070555501,4.62587629,153.88,153.85,11.22722902]
[1752070555701,4.62587629,153.87,153.85,11.22722902]
[1752070555902,2.162,153.9,153.85,11.22722902]
[1752070556204,4.62728043,153.89,153.85,11.22722902]
[1752070556498,6.97152902,153.91,153.85,4.72872902]
[1752070556499,2.2428,153.91,153.85,4.72872902]
[1752070556705,4.62788845,153.9,153.87,4.72872902]
[1752070557004,4.72872902,153.93,153.87,4.72872902]
[1752070557201,4.62740568,153.92,153.87,4.72872902]
[1752070557402,11.12370568,153.91,153.81,5.4772]
[1752070557602,6.4963,153.91,153.87,4.72872902]
[1752070558103,6.4961,153.92,153.88,6.4976]
[1752070558508,4.72872902,153.93,153.87,4.72872902]
[1752070558709,2.162,153.95,153.89,4.72872902]
[1752070558905,4.64999813,153.94,153.89,4.72872902]
[1752070559097,2.162,153.95,153.89,4.72872902]
[1752070559803,6.4958,153.93,153.89,11.22572902]
[1752070560002,2.162,153.95,153.89,4.72872902]
[1752070560404,6.4953,153.94,153.9,6.4966]
[1752070560605,2.162,153.95,153.89,4.72872902]
[1752070560801,6.89072902,153.95,153.88,4.72872902]
[1752070561006,6.4964,153.91,153.87,6.4979]
[1752070561398,4.72872902,153.94,153.86,4.72872902]
[1752070561608,2.162,153.95,153.88,4.72872902]
[1752070561905,4.64299316,153.94,153.88,4.72872902]
[1752070562208,2.162,153.95,153.88,4.72872902]
[1752070562905,6.4956,153.93,153.9,6.4965]
[1752070563105,2.162,153.95,153.88,4.72872902]
[1752070563503,6.4952,153.94,153.91,6.4961]
[1752070563808,4.72872902,153.99,153.88,1.0]
[1752070564000,6.4945,153.96,153.92,11.22442902]
[1752070564410,6.4945,153.96,153.92,4.72872902]
[1752070564597,6.494,153.97,153.92,4.72872902]
[1752070565000,4.72872902,153.99,153.92,4.72872902]
[1752070565498,4.72872902,153.95,153.89,3.1865]
[1752070565700,4.72872902,153.95,153.87,4.72872902]
[1752070565901,6.4963,153.92,153.89,6.4969]
[1752070566100,4.72872902,153.93,153.86,4.72872902]
[1752070566505,6.4966,153.91,153.88,6.4972]
[1752070566706,4.72872902,153.93,153.86,4.72872902]
[1752070566899,4.6178,153.94,153.86,4.72872902]
[1752070567104,6.4957,153.93,153.89,6.4968]
[1752070567505,6.4957,153.93,153.86,4.72872902]
[1752070567809,6.4957,153.93,153.89,6.4968]
[1752070568010,9.34652902,153.94,153.86,4.72872902]
[1752070568602,6.4958,153.93,153.86,4.72872902]
[1752070568810,4.72872902,153.94,153.88,4.72872902]
[1752070569008,6.4951,153.94,153.88,4.72872902]
[1752070569509,6.4949,153.95,153.9,4.72872902]
[1752070569708,4.72872902,153.98,153.9,4.72872902]
[1752070570108,6.4944,153.96,153.92,6.4957]
[1752070570305,4.72872902,153.98,153.92,6.4957]
[1752070570810,4.6178,153.99,153.92,4.72872902]
[1752070571012,2.2929,153.99,153.92,4.72872902]
[1752070571311,6.4942,153.97,153.92,4.72872902]
[1752070571713,6.4942,153.97,153.93,6.4952]
[1752070572112,6.4942,153.97,153.92,4.72872902]
[1752070572306,2.2929,153.99,153.92,4.72872902]
[1752070572513,4.6555,154.03,153.94,4.72872902]
[1752070572808,4.72872902,154.02,153.96,6.4939]
[1752070573113,6.4929,154.0,153.94,4.72872902]
[1752070573311,4.72872902,154.02,153.94,4.72872902]
[1752070573810,6.4929,154.0,153.97,6.4937]
[1752070574415,6.493,153.99,153.94,4.72872902]
[1752070574614,4.72872902,154.0,153.92,1.0]
[1752070574813,6.4953,153.94,153.89,5.457]
[1752070575116,4.72872902,153.96,153.89,4.457]
[1752070575508,4.72872902,154.0,153.9,4.72872902]
[1752070575708,4.72872902,153.99,153.92,4.72872902]
[1752070576018,6.4936,153.98,153.94,6.4949]
[1752070576711,4.72872902,153.98,153.93,6.4953]
[1752070576919,4.72872902,153.98,153.9,5.72872902]
[1752070577117,6.4944,153.96,153.9,5.72872902]
[1752070577317,4.72872902,153.98,153.9,5.72872902]
[1752070578116,6.4947,153.95,153.92,6.4957]
[1752070579820,6.4951,153.94,153.92,6.4957]
[1752070580025,6.4951,153.94,153.91,6.4962]
[1752070580320,4.72872902,153.96,153.9,4.72872902]
[1752070580520,4.72872902,153.96,153.91,6.4963]
[1752070580521,6.4953,153.94,153.91,6.4963]
[1752070581820,6.4955,153.93,153.91,6.4963]
[1752070582220,4.72872902,153.96,153.91,6.4963]
[1752070582520,6.4952,153.94,153.91,6.4963]
[1752070583819,6.4956,153.93,153.91,6.4963]
[1752070584422,6.4948,153.95,153.9,4.72872902]
[1752070584620,4.72872902,153.96,153.89,4.457]
[1752070585215,6.4953,153.94,153.91,6.496]
[1752070585822,6.4949,153.95,153.92,6.4957]
[1752070586620,6.4951,153.94,153.92,6.4957]
[1752070586928,4.72872902,153.96,153.93,6.4954]
[1752070588020,101.66853482,154.04,153.94,6.495]
[1752070588220,4.72872902,153.99,153.94,6.495]
[1752070588725,6.4942,153.97,153.94,6.495]
[1752070589224,4.72872902,153.99,153.94,6.495]
[1752070590229,6.494,153.97,153.94,6.495]
[1752070590432,4.72872902,153.99,153.94,6.495]
[1752070590629,12.9836,154.02,153.93,6.4953]
[1752070590832,6.495,153.95,153.93,6.4953]
[1752070591031,4.72872902,153.97,153.93,6.4953]
[1752070591331,6.4946,153.96,153.93,6.4953]
[1752070591630,4.72872902,153.97,153.93,6.4953]
[1752070592226,6.4949,153.95,153.93,6.4953]
[1752070593726,6.4949,153.95,153.92,6.4957]
[1752070594930,6.4949,153.95,153.93,6.4954]
[1752070595130,6.4945,153.96,153.93,6.4954]
[1752070595328,4.72872902,153.99,153.92,4.72872902]
[1752070595522,4.74182103,153.98,153.92,4.72872902]
[1752070595723,6.4945,153.96,153.92,4.72872902]
[1752070596232,4.72872902,154.01,153.92,4.72872902]
[1752070596430,8.07406624,154.0,153.97,6.4936]
[1752070596629,9.38422902,154.03,153.97,6.4936]
[1752070596930,6.4923,154.01,153.97,6.4936]
[1752070597331,6.4923,154.01,153.96,4.72872902]
[1752070598226,565.98872902,154.05,153.98,4.72872902]
[1752070598428,12.83707641,154.04,153.98,4.72872902]
[1752070598628,11.24178856,154.03,154.0,6.4923]
[1752070598833,565.98872902,154.05,153.98,4.72872902]
[1752070599029,12.83507808,154.04,153.98,4.72872902]
[1752070599229,6.4918,154.02,153.99,6.4927]
[1752070599634,561.26,154.05,153.98,4.72872902]
[1752070599934,12.84198921,154.04,153.98,4.72872902]
[1752070600128,4.72872902,154.06,154.0,4.72872902]
[1752070600328,19.39991319,154.05,154.01,6.4918]
[1752070600533,4.75167792,154.04,153.97,4.5733]
[1752070600834,9.02223344,154.1,154.02,4.72872902]
[1752070601134,590.71585224,154.22,154.08,4.72872902]
[1752070601135,9.02223344,154.15,154.08,4.72872902]
[1752070601333,6.4871,154.13,154.09,6.4886]
[1752070601533,6.4871,154.13,154.08,4.72872902]
[1752070601534,16.06216246,154.18,154.1,4.72872902]
[1752070601730,6.487,154.14,154.03,5.5733]
[1752070601938,4.72872902,154.16,154.09,4.72872902]
[1752070602133,8.14608905,154.15,154.09,4.72872902]
[1752070602433,4.72872902,154.17,154.09,4.72872902]
[1752070602630,16.36607013,154.16,154.13,4.72872902]
[1752070602934,4.72872902,154.27,154.15,9.45745804]
[1752070603138,16.37533219,154.26,154.18,4.72872902]
[1752070603324,8.14104237,154.25,154.18,4.72872902]
[1752070603529,4.72872902,154.26,154.18,4.72872902]
[1752070603830,6.4833,154.22,154.18,11.21342902]
[1752070604433,6.4829,154.23,154.19,6.4844]
[1752070604633,4.72872902,154.25,154.18,4.72872902]
[1752070604833,4.72872902,154.25,154.16,4.5992]
[1752070604834,8.10008598,154.24,154.16,4.5992]
[1752070605137,9.02223344,154.28,154.17,7.06095308]
[1752070605338,7.06095308,154.26,154.17,7.06095308]
[1752070605534,8.24682734,154.25,154.17,7.06095308]
[1752070605830,4.5931,154.29,154.21,7.06095308]
[1752070606031,8.24789366,154.28,154.21,7.06095308]
[1752070606236,6.4828,154.24,154.2,13.54485308]
[1752070606437,8.23450585,154.28,154.2,7.06095308]
[1752070606638,4.5931,154.29,154.2,7.06095308]
[1752070606931,6.4823,154.25,154.21,6.4837]
[1752070607139,7.06095308,154.26,154.17,7.06095308]
[1752070607338,7.06095308,154.27,154.17,7.06095308]
[1752070607543,7.06095308,154.27,154.16,4.5992]
[1752070607838,6.4836,154.22,154.18,6.4848]
[1752070608832,6.4837,154.21,154.17,13.54625308]
[1752070609043,7.06095308,154.23,154.14,7.06095308]
[1752070609240,6.4855,154.17,154.14,7.06095308]
[1752070609641,7.06095308,154.19,154.1,7.06095308]
[1752070610036,6.4859,154.16,154.1,7.06095308]
[1752070610235,6.4859,154.16,154.12,6.4872]
[1752070610635,2.2662,154.21,154.09,4.3085]
[1752070610835,7.06095308,154.16,154.09,4.3085]
[1752070611041,6.4871,154.13,154.09,4.3085]
[1752070611436,7.06095308,154.16,154.09,4.3085]
[1752070611947,7.06095308,154.16,154.08,6.4891]
[1752070612442,6.4878,154.12,154.08,6.4891]
[1752070613242,6.4881,154.11,154.07,6.4894]
[1752070613644,6.4883,154.1,154.07,6.4894]
[1752070613943,7.06095308,154.14,154.07,6.4894]
[1752070614142,7.06095308,154.14,154.05,560.66]
[1752070614741,7.06095308,154.16,154.06,7.06095308]
[1752070615141,6.4878,154.12,154.08,6.4889]
[1752070615342,7.06095308,154.14,154.08,6.4889]
[1752070615647,6.4878,154.12,154.08,6.4889]
[1752070616143,7.06095308,154.14,154.08,6.4889]
[1752070617243,6.4877,154.12,154.08,6.4889]
[1752070617642,7.06095308,154.14,154.05,560.66]
[1752070617945,6.4893,154.08,154.0,7.06095308]
[1752070618146,7.06095308,154.1,154.0,7.06095308]
[1752070618448,6.489,154.09,154.05,6.4902]
[1752070618643,7.06095308,154.1,154.05,6.4902]
[1752070619346,7.06095308,154.1,154.0,7.06095308]
[1752070619641,7.06095308,154.08,153.98,7.06095308]
[1752070619947,6.4907,154.05,154.01,6.4919]
[1752070621046,7.06095308,154.08,153.98,7.06095308]
[1752070621246,7.06095308,154.08,154.0,7.06095308]
[1752070621644,6.4905,154.05,153.98,7.06095308]
[1752070622247,6.4902,154.06,154.02,6.4917]
[1752070622951,6.4905,154.05,154.02,6.4917]
[1752070623143,7.06095308,154.08,154.03,6.4912]
[1752070623346,7.06095308,154.08,154.0,7.06095308]
[1752070623547,6.4899,154.07,154.0,7.06095308]
[1752070624254,6.4901,154.06,154.02,6.4913]
[1752070624456,7.06095308,154.08,154.0,7.06095308]
[1752070624947,7.06095308,154.08,154.03,6.491]
[1752070624948,6.4899,154.07,154.03,6.491]
[1752070626458,6.49,154.06,154.03,6.491]
[1752070626852,7.06095308,154.08,154.03,6.491]
[1752070627056,6.4898,154.07,154.03,6.491]
[1752070628356,7.06095308,154.1,154.02,7.06095308]
[1752070628953,6.4897,154.07,154.04,6.4906]
[1752070629154,7.06095308,154.1,154.02,7.06095308]
[1752070629658,6.4894,154.08,154.04,6.4904]
[1752070630050,6.4894,154.08,154.05,6.4903]
[1752070630356,9.31985308,154.12,154.02,7.06095308]
[1752070631356,6.489,154.09,154.05,6.49]
[1752070631750,9.31985308,154.12,154.02,7.06095308]
[1752070631964,2.28,154.13,154.06,7.06095308]
[1752070632554,6.4877,154.12,154.09,6.4885]
[1752070632754,6.4877,154.12,154.06,7.06095308]
[1752070633559,6.4881,154.11,154.05,7.06095308]
[1752070633759,2.28,154.13,154.05,7.06095308]
[1752070634561,6.4878,154.12,154.08,6.4889]
[1752070635061,6.4878,154.12,154.05,7.06095308]
[1752070635261,6.4878,154.12,154.09,6.4885]
[1752070635460,2.3543,154.19,154.07,7.06095308]
[1752070635658,567.28095308,154.16,154.06,7.06095308]
[1752070636555,6.4873,154.13,154.09,6.4885]
[1752070636761,4.71292373,154.14,154.09,6.4885]
[1752070636962,564.93292373,154.16,154.1,6.4881]
[1752070637161,564.93292373,154.16,154.09,4.71292373]
[1752070637665,2.1492,154.18,154.09,4.71292373]
[1752070637865,0.04164488,154.14,154.09,4.71292373]
[1752070638167,0.04164488,154.14,154.03,5.4975]
[1752070638466,0.04164488,154.14,154.07,4.71292373]
[1752070638663,4.71292373,154.15,154.07,4.71292373]
[1752070638865,6.4875,154.12,154.09,6.4885]
[1752070640268,6.4879,154.11,154.09,6.4885]
[1752070640662,4.71292373,154.14,154.09,6.4885]
[1752070640866,6.4877,154.12,154.09,6.4885]
[1752070644475,2.1492,154.18,154.11,4.71292373]
[1752070644688,8.24034462,154.17,154.11,4.71292373]
[1752070644873,2.1492,154.18,154.11,4.71292373]
[1752070645175,8.23885096,154.17,154.11,4.71292373]
[1752070645376,6.4856,154.17,154.11,4.71292373]
[1752070645977,6.4856,154.17,154.13,6.4868]
[1752070646272,6.4856,154.17,154.11,4.71292373]
[1752070646474,6.4851,154.18,154.13,4.71292373]
[1752070646678,96.6121304,154.22,154.15,4.71292373]
[1752070646878,8.23661236,154.21,154.15,4.71292373]
[1752070647080,91.89920667,154.22,154.17,6.4851]
[1752070647375,8.23629085,154.21,154.17,4.71292373]
[1752070647579,98.38270667,154.22,154.18,6.4847]
[1752070647775,8.23811446,154.21,154.18,6.4847]
[1752070648075,98.38270667,154.22,154.18,6.4847]
[1752070648269,6.4841,154.21,154.17,11.19822373]
[1752070648670,98.38270667,154.22,154.18,6.4849]
[1752070649177,6.4837,154.21,154.18,6.4849]
[1752070649676,91.89920667,154.22,154.17,11.19802373]
[1752070649872,6.4839,154.21,154.17,11.19802373]
[1752070650471,6.4839,154.21,154.18,6.4849]
[1752070650677,4.71292373,154.26,154.19,4.71292373]
[1752070650981,8.32222223,154.25,154.19,4.71292373]
[1752070651176,8.32222223,154.24,154.19,4.71292373]
[1752070651371,4.71292373,154.26,154.19,4.71292373]
[1752070651573,6.4834,154.22,154.19,11.19742373]
[1752070651972,4.71292373,154.26,154.19,11.19742373]
[1752070652182,8.32248128,154.25,154.19,11.19742373]
[1752070652479,8.32248128,154.24,154.19,11.19742373]
[1752070652677,6.4832,154.23,154.19,11.19742373]
[1752070652873,4.71292373,154.26,154.19,11.19742373]
[1752070653072,4.71292373,154.24,154.16,3.1366]
[1752070653272,6.485,154.18,154.16,5.71292373]
[1752070653477,4.71292373,154.2,154.11,2.332]
[1752070653680,4.71292373,154.2,154.16,6.4858]
[1752070653880,4.71292373,154.25,154.17,4.71292373]
[1752070654179,8.32852937,154.24,154.17,4.71292373]
[1752070654476,6.4835,154.22,154.19,6.4845]
[1752070654887,4.71292373,154.25,154.19,6.4845]
[1752070655081,8.94912154,154.28,154.19,6.4845]
[1752070655278,4.71292373,154.25,154.11,2.332]
[1752070655474,4.71292373,154.25,154.18,4.71292373]
[1752070656080,6.4837,154.21,154.18,4.71292373]
[1752070656272,4.71292373,154.25,154.18,4.71292373]
[1752070656476,6.4835,154.22,154.19,6.4845]
[1752070656675,13.39502154,154.29,154.18,4.71292373]
[1752070656874,12.35030359,154.28,154.22,6.4831]
[1752070657076,13.05690057,154.27,154.22,6.4831]
[1752070657279,8.34397684,154.26,154.2,4.71292373]
[1752070657582,6.4821,154.25,154.22,6.4832]
[1752070657982,6.4818,154.26,154.23,6.4828]
[1752070658383,4.4459,154.29,154.22,4.71292373]
[1752070658681,4.4459,154.29,154.23,4.71292373]
[1752070658884,4.71292373,154.3,154.23,4.71292373]
[1752070659082,6.4812,154.27,154.23,4.71292373]
[1752070659483,6.4812,154.27,154.24,6.4821]
[1752070659686,6.481,154.28,154.23,4.71292373]
[1752070660084,4.71292373,154.3,154.23,4.71292373]
[1752070660283,4.71292373,154.32,154.18,12.9699]
[1752070660483,4.71292373,154.32,154.24,4.71292373]
[1752070660883,6.4801,154.3,154.24,4.71292373]
[1752070661188,4.4405,154.33,154.18,12.9699]
[1752070661390,6.4806,154.29,154.25,4.71292373]
[1752070661985,4.71292373,154.3,154.23,4.71292373]
[1752070662278,4.71292373,154.29,154.18,12.9699]
[1752070662483,6.4814,154.27,154.24,6.4823]
[1752070663785,6.4814,154.27,154.17,4.3525]
[1752070663786,4.71292373,154.27,154.2,4.71292373]
[1752070664380,6.4825,154.24,154.21,6.4835]
[1752070664781,6.4825,154.24,154.2,4.71292373]
[1752070664980,4.71292373,154.27,154.2,4.71292373]
[1752070665481,6.4819,154.26,154.23,6.4827]
[1752070665688,4.71292373,154.29,154.22,4.71292373]
[1752070666082,4.71292373,154.31,154.24,4.71292373]
[1752070666793,4.71292373,154.31,154.23,4.71292373]
[1752070667196,6.4809,154.28,154.25,6.4818]
[1752070667790,6.4809,154.28,154.17,4.3525]
[1752070667995,4.71292373,154.31,154.26,6.4813]
[1752070668195,4.71292373,154.31,154.23,4.71292373]
[1752070668392,4.71292373,154.31,154.25,6.4819]
[1752070668995,6.481,154.28,154.25,6.4819]
[1752070669194,4.71292373,154.29,154.24,6.4823]